bitfinex-derivatives/quotes_SOLF0:USTF0_20250719
["timestamp","ask_amount","ask_price","bid_price","bid_amount"]
[1752888889353,8.6968,176.34,176.3,5.6678]
[1752888889560,3.03,176.31,176.3,3.18]
[1752888889954,3.03,176.31,176.26,3.18]
[1752888890261,3.03,176.3,176.26,3.18]
[1752888890657,3.03,176.3,176.29,3.18]
[1752888891963,5.19639351,176.31,176.3,3.18]
[1752888895266,10.86419351,176.31,176.3,3.18]
[1752888895564,10.86419351,176.31,176.28,5.6685]
[1752888895565,3.05,176.3,176.29,3.03]
[1752888899059,3.05,176.32,176.3,3.03]
[1752888899263,3.05,176.32,176.29,5.6684]
[1752888899264,3.05,176.32,176.31,3.03]
[1752888899869,8.7175,176.32,176.31,3.03]
[1752888900668,8.7175,176.32,176.29,5.6684]
[1752888900870,3.05,176.31,176.3,3.03]
[1752888901867,3.05,176.3,176.28,3.03]
[1752888902266,3.05,176.29,176.28,3.03]
[1752888904574,3.05,176.29,176.28,8.6987]
[1752888904774,3.08950361,176.3,176.29,3.03]
[1752888905068,0.03950361,176.3,176.29,3.03]
[1752888906572,0.03950361,176.3,176.29,8.6984]
[1752888907071,7.83299351,176.35,176.33,3.03]
[1752888907270,5.21639351,176.35,176.33,3.03]
[1752888908871,5.21639351,176.35,176.33,8.6971]
[1752888909074,5.21639351,176.35,176.34,3.03]
[1752888910076,3.05,176.35,176.34,3.03]
[1752888910376,5.21639351,176.36,176.35,3.03]
[1752888910974,3.05,176.37,176.36,3.03]
[1752888914374,3.05,176.37,176.34,8.6968]
[1752888914671,5.21639351,176.4,176.37,3.03]
[1752888915468,3.05,176.39,176.38,3.03]
[1752888916075,3.05,176.39,176.37,3.07343782]
[1752888916572,7.83129351,176.4,176.37,3.07343782]
[1752888916778,3.05,176.38,176.37,3.07343782]
[1752888917878,5.21639351,176.4,176.38,3.03]
[1752888918181,5.21639351,176.4,176.39,3.03]
[1752888918782,10.88159351,176.4,176.37,3.07343782]
[1752888918981,7.83159351,176.4,176.37,3.07343782]
[1752888919181,3.05,176.38,176.37,3.07343782]
[1752888922885,5.21639351,176.38,176.37,0.04343782]
[1752888923685,3.05,176.37,176.31,3.03]
[1752888923881,2.16639351,176.32,176.31,3.03]
[1752888924080,5.21639351,176.32,176.25,6.89460761]
[1752888924282,5.21639351,176.32,176.26,3.03]
[1752888925485,5.21639351,176.32,176.29,5.6684]
[1752888925678,5.21639351,176.32,176.31,3.32]
[1752888927984,3.28,176.35,176.31,3.32]
[1752888928183,2.16639351,176.34,176.33,3.32]
[1752888928390,115.07279351,176.36,176.33,3.32]
[1752888928887,109.40639351,176.36,176.34,3.32]
[1752888929076,3.28,176.35,176.34,3.32]
[1752888929981,3.28,176.35,176.31,5.6675]
[1752888930188,3.28,176.33,176.31,5.6675]
[1752888930483,3.28,176.32,176.31,3.32]
[1752888930690,2.16639351,176.32,176.25,6.89460761]
[1752888930984,3.28,176.31,176.3,3.32]
[1752888931791,3.28,176.31,176.28,3.32]
[1752888931981,2.16639351,176.3,176.28,3.32]
[1752888932179,3.28,176.29,176.28,3.32]
[1752888934085,2.16639351,176.3,176.28,8.9887]
[1752888934292,5.44639351,176.3,176.29,3.32]
[1752888936195,2.16639351,176.3,176.29,3.32]
[1752888938395,5.44639351,176.3,176.29,3.32]
[1752888940191,3.28,176.29,176.27,3.32]
[1752888940396,5.44639351,176.28,176.27,3.32]
[1752888940989,3.28,176.28,176.27,3.32]
[1752888941188,7.83459351,176.3,176.26,5.6693]
[1752888941189,3.28,176.29,176.28,3.32]
[1752888941495,3.28,176.29,176.26,8.9893]
[1752888941695,3.28,176.29,176.28,3.32]
[1752888942692,2.16639351,176.3,176.29,3.32]
[1752888943792,2.16639351,176.3,176.29,8.9884]
[1752888943994,5.44639351,176.34,176.29,3.32]
[1752888944200,2.16639351,176.34,176.29,3.32]
[1752888944397,2.16639351,176.34,176.32,5.6673]
[1752888944595,5.44639351,176.34,176.33,3.32]
[1752888945103,3.28,176.33,176.26,3.32]
[1752888945295,5.44639351,176.32,176.26,3.32]
[1752888945493,5.44639351,176.32,176.3,5.6679]
[1752888945693,5.44639351,176.32,176.31,3.32]
[1752888945894,2.16639351,176.32,176.31,3.32]
[1752888946097,5.44639351,176.34,176.31,3.32]
[1752888946297,5.44639351,176.34,176.31,5.6678]
[1752888946490,5.44639351,176.34,176.33,3.32]
[1752888946993,5.44639351,176.34,176.31,8.9878]
[1752888947210,3.28,176.33,176.32,3.32]
[1752888947394,3.28,176.33,176.31,3.32]
[1752888947590,3.28,176.33,176.27,3.32]
[1752888947802,2.16639351,176.35,176.29,3.32]
[1752888948299,2.16639351,176.35,176.33,5.6669]
[1752888948597,2.16639351,176.37,176.34,3.32]
[1752888948804,5.44639351,176.37,176.34,3.32]
[1752888949300,5.44639351,176.37,176.34,8.9866]
[1752888949494,5.44639351,176.37,176.36,3.32]
[1752888950895,0.03713219,176.38,176.36,3.32]
[1752888951598,0.03713219,176.38,176.36,8.986]
[1752888951901,0.03713219,176.38,176.37,3.32]
[1752888953704,0.03713219,176.38,176.37,8.9859]
[1752888954900,0.03713219,176.38,176.37,3.32]
[1752888957004,0.03713219,176.38,176.37,8.9859]
[1752888957804,69.1179391,176.42,176.35,0.03736934]
[1752888957805,2.16639351,176.44,176.4,3.34]
[1752888958003,3.05,176.43,176.4,3.34]
[1752888958300,8.714,176.43,176.4,3.34]
[1752888958499,5.664,176.43,176.39,5.6652]
[1752888958703,3.05,176.42,176.41,3.34]
[1752888960006,3.05,176.43,176.42,3.34]
[1752888960208,3.05,176.43,176.39,3.38042308]
[1752888960403,8.7162,176.36,176.35,3.34]
[1752888960599,10.88259351,176.36,176.35,3.34]
[1752888960998,5.21639351,176.36,176.31,3.34]
[1752888961203,3.05,176.35,176.31,3.34]
[1752888961706,2.16639351,176.36,176.31,3.34]
[1752888962213,5.21639351,176.36,176.31,3.34]
[1752888962611,3.05,176.36,176.31,3.34]
[1752888962808,3.05,176.36,176.33,5.6669]
[1752888963304,3.05,176.36,176.35,3.34]
[1752888963707,103.94,176.41,176.35,9.0064]
[1752888963913,2.16639351,176.38,176.36,3.34]
[1752888964113,2.16639351,176.38,176.35,5.6664]
[1752888964407,5.21639351,176.38,176.37,3.34]
[1752888965213,10.88199351,176.38,176.34,5.6667]
[1752888965411,3.05,176.37,176.36,3.34]
[1752888965611,3.05,176.37,176.32,2.16639351]
[1752888965612,3.05,176.37,176.31,3.34]
[1752888965813,5.21639351,176.36,176.33,3.34]
[1752888966014,3.05,176.35,176.34,3.34]
[1752888969215,2.16639351,176.36,176.34,3.34]
[1752888969411,5.21639351,176.36,176.34,3.34]
[1752888969616,3.05,176.35,176.34,3.34]
[1752888970117,2.16639351,176.36,176.34,3.34]
[1752888970317,3.05,176.35,176.33,3.34]
[1752888970616,5.21639351,176.34,176.33,3.34]
[1752888972917,2.16639351,176.34,176.32,3.34]
[1752888973117,3.05,176.33,176.32,3.34]
[1752888973321,3.05,176.33,176.32,9.0075]
[1752888974112,2.16639351,176.34,176.32,9.0075]
[1752888974318,5.21639351,176.34,176.33,3.34]
[1752888974716,2.16639351,176.34,176.33,3.34]
[1752888975423,2.16639351,176.34,176.33,9.0071]
[1752888976114,5.21639351,176.34,176.33,3.34]
[1752888977124,2.16639351,176.34,176.33,9.0071]
[1752888982529,5.6659,176.37,176.33,9.0071]
[1752888982724,2.16639351,176.35,176.34,3.34]
[1752888983628,2.16639351,176.35,176.34,9.0068]
[1752888985738,2.16639351,176.35,176.34,3.34]
[1752888985934,5.21639351,176.36,176.34,3.34]
[1752888987037,3.18,176.38,176.34,3.34]
[1752888987231,5.34639351,176.38,176.34,3.34]
[1752888987735,3.18,176.39,176.33,3.21]
[1752888988134,3.18,176.39,176.37,3.21]
[1752888989037,3.18,176.39,176.37,5.6658]
[1752888989236,3.18,176.39,176.38,3.21]
[1752888996941,5.34639351,176.39,176.38,3.21]
[1752889003251,3.18,176.39,176.38,3.21]
[1752889003646,5.34639351,176.39,176.38,3.21]
[1752889005056,11.01159351,176.39,176.38,3.21]
[1752889005247,5.34639351,176.39,176.36,3.21]
[1752889005550,3.18,176.36,176.34,3.21]
[1752889005745,2.16639351,176.35,176.34,3.21]
[1752889005953,5.34639351,176.35,176.34,3.21]
[1752889006642,5.34639351,176.35,176.34,8.8768]
[1752889006949,5.34639351,176.39,176.34,3.21]
[1752889007452,5.34639351,176.37,176.32,4.75079937]
[1752889007644,2.16639351,176.37,176.32,4.75079937]
[1752889007851,3.18,176.34,176.32,4.76048172]
[1752889008050,3.18,176.34,176.3,4.76048172]
[1752889008252,3.18,176.33,176.31,3.21]
[1752889008650,3.18,176.33,176.3,4.76048172]
[1752889008959,1.38654291,176.33,176.32,3.21]
[1752889009855,1.38654291,176.33,176.32,8.8775]
[1752889010150,3.18,176.34,176.32,3.21]
[1752889010151,4.56654291,176.34,176.32,3.21]
[1752889010355,1.38654291,176.34,176.32,3.21]
[1752889010951,3.18,176.35,176.32,3.21]
[1752889010952,5.34623061,176.35,176.32,3.21]
[1752889011657,5.34623061,176.35,176.32,8.8774]
[1752889011858,3.18,176.34,176.33,3.21]
[1752889013653,2.16623061,176.35,176.33,8.8771]
[1752889013858,5.34623061,176.35,176.34,3.21]
[1752889014861,5.34623061,176.35,176.34,8.8768]
[1752889015159,5.34623061,176.35,176.34,3.21]
[1752889015459,8.8259,176.37,176.34,3.21]
[1752889015757,5.32623061,176.36,176.34,3.21]
[1752889017960,2.16623061,176.36,176.33,5.6669]
[1752889018262,3.16,176.35,176.33,5.6669]
[1752889018561,3.16,176.35,176.34,3.04]
[1752889019658,3.16,176.35,176.34,8.7068]
[1752889019865,3.16,176.35,176.34,3.04]
[1752889022367,3.16,176.35,176.3,3.04]
[1752889022667,3.16,176.35,176.32,5.6672]
[1752889022962,3.16,176.35,176.3,3.04]
[1752889024265,7.83263061,176.36,176.3,3.04]
[1752889024666,10.99263061,176.36,176.3,3.04]
[1752889025163,3.16,176.35,176.3,3.04]
[1752889025766,3.16,176.35,176.33,5.6671]
[1752889025967,3.16,176.35,176.34,3.04]
[1752889030972,4.54627345,176.35,176.34,3.04]
[1752889032874,110.17251374,176.42,176.34,3.04]
[1752889033074,1.38627345,176.36,176.34,3.04]
[1752889033670,1.38627345,176.36,176.35,8.7065]
[1752889033870,1.38605562,176.36,176.35,8.7065]
[1752889034774,4.54605562,176.36,176.35,8.7065]
[1752889037480,3.16,176.36,176.35,8.7065]
[1752889037885,4.54605562,176.37,176.35,8.7065]
[1752889038078,3.16,176.37,176.36,3.04]
[1752889038279,4.54605562,176.37,176.36,3.04]
[1752889039082,4.54605562,176.37,176.36,8.7062]
[1752889039976,1.38605562,176.4,176.37,3.04]
[1752889040184,4.54605562,176.4,176.37,3.04]
[1752889040374,4.54605562,176.4,176.38,5.6655]
[1752889040579,3.16,176.38,176.36,1.38605562]
[1752889040779,3.16,176.38,176.35,1.38554184]
[1752889040986,3.16,176.38,176.37,8.7059]
[1752889041180,4.54554184,176.39,176.37,3.04]
[1752889042986,4.54554184,176.39,176.38,8.7055]
[1752889044384,5.6644,176.42,176.38,8.7055]
[1752889044580,1.38554184,176.39,176.38,5.6655]
[1752889045080,1.38554184,176.39,176.38,8.9355]
[1752889045984,1.38554184,176.39,176.38,3.27]
[1752889046488,3.1,176.4,176.38,3.27]
[1752889046687,1.38554184,176.39,176.38,3.27]
[1752889047589,4.48554184,176.39,176.38,3.27]
[1752889049984,3.1,176.4,176.38,5.6655]
[1752889050193,3.1,176.4,176.39,3.27]
[1752889050685,3.1,176.43,176.41,3.27]
[1752889050879,1.38554184,176.42,176.41,3.27]
[1752889051484,4.48554184,176.42,176.41,3.27]
[1752889051690,1.38554184,176.42,176.41,3.27]
[1752889052492,4.48554184,176.42,176.41,3.27]
[1752889054395,3.1,176.39,176.35,3.27]
[1752889054588,4.48554184,176.38,176.35,3.27]
[1752889055895,4.48554184,176.38,176.37,3.27]
[1752889056090,1.38554184,176.38,176.37,3.27]
[1752889056290,4.48554184,176.39,176.37,3.27]
[1752889056690,4.48554184,176.39,176.38,3.27]
[1752889057893,3.1,176.39,176.38,3.27]
[1752889058093,4.48554184,176.39,176.38,3.27]
[1752889059495,1.38554184,176.39,176.38,8.9355]
[1752889059691,1.38554184,176.41,176.38,4.65554184]
[1752889059994,1.38554184,176.41,176.39,3.27]
[1752889060590,4.48554184,176.4,176.35,3.27]
[1752889060895,3.1,176.39,176.37,3.27]
[1752889061296,4.48554184,176.39,176.38,3.27]
[1752889062793,3.1,176.39,176.38,8.9355]
[1752889063493,4.48554184,176.4,176.38,8.9355]
[1752889063700,4.48554184,176.4,176.39,3.27]
[1752889064495,5.664,176.43,176.39,8.9351]
[1752889064701,4.48554184,176.41,176.4,3.27]
[1752889069704,10.15014184,176.41,176.4,3.27]
[1752889070400,4.48554184,176.41,176.4,3.27]
[1752889070996,10.15014184,176.41,176.4,3.27]
[1752889072005,4.48554184,176.41,176.4,3.27]
[1752889074608,10.15014184,176.41,176.4,3.27]
[1752889074905,3.14,176.4,176.39,3.27]
[1752889075097,4.52554184,176.4,176.39,3.27]
[1752889076812,3.14,176.4,176.39,3.27]
[1752889077014,4.52554184,176.4,176.39,3.27]
[1752889081013,1.38554184,176.4,176.39,3.27]
[1752889081412,3.17738492,176.41,176.39,3.27]
[1752889081711,1.38554184,176.4,176.39,3.27]
[1752889082313,1.38542461,176.4,176.39,3.27]
[1752889082512,3.17738492,176.41,176.39,3.27]
[1752889082713,1.38542461,176.4,176.39,3.27]
[1752889083515,0.03738492,176.41,176.4,5.6649]
[1752889083816,0.03738492,176.41,176.4,8.9349]
[1752889084215,69.63253327,176.44,176.42,5.6641]
[1752889084517,1.38500874,176.44,176.43,3.27]
[1752889085119,4.52500874,176.44,176.43,3.27]
[1752889085519,3.14,176.44,176.43,3.27]
[1752889085821,4.52500874,176.44,176.43,3.27]
[1752889091426,3.14,176.44,176.43,3.27]
[1752889091623,4.52500874,176.44,176.43,3.27]
[1752889091830,3.14,176.43,176.42,0.03898415]
[1752889092129,3.14,176.42,176.39,3.27]
[1752889092330,4.52500874,176.4,176.39,3.27]
[1752889093331,3.14,176.39,176.38,3.27]
[1752889093629,4.52500874,176.39,176.37,3.27]
[1752889093829,4.52500874,176.38,176.37,3.27]
[1752889094722,3.14,176.4,176.37,3.27]
[1752889094922,1.38500874,176.4,176.38,3.27]
[1752889096024,4.52500874,176.39,176.38,3.27]
[1752889097227,1.38500874,176.39,176.38,3.27]
[1752889097429,1.38500874,176.42,176.39,3.27]
[1752889097631,1.38500874,176.46,176.41,4.65500874]
[1752889097928,1.38500874,176.46,176.43,3.27]
[1752889097929,4.52500874,176.46,176.43,3.27]
[1752889098128,1.38500874,176.45,176.43,3.27]
[1752889098526,4.52500874,176.45,176.43,3.27]
[1752889098934,3.14,176.45,176.43,3.27]
[1752889099127,3.14,176.46,176.43,3.27]
[1752889099835,3.14,176.46,176.43,8.9339]
[1752889100133,3.14,176.44,176.42,3.27]
[1752889100333,5.30341266,176.43,176.42,3.27]
[1752889100534,7.82741266,176.43,176.39,5.6651]
[1752889100732,2.16341266,176.41,176.38,3.27]
[1752889100936,3.14,176.4,176.39,3.27]
[1752889104938,2.16341266,176.42,176.39,3.27]
[1752889105139,2.16341266,176.42,176.39,5.6651]
[1752889105341,3.1,176.44,176.38,3.32]
[1752889105545,10.92721266,176.44,176.38,3.32]
[1752889105845,3.1,176.43,176.38,3.32]
[1752889106035,3.1,176.43,176.4,3.32]
[1752889107645,7.82721266,176.44,176.4,5.6649]
[1752889107842,2.16341266,176.42,176.38,3.32]
[1752889108044,3.1,176.41,176.38,3.32]
[1752889108247,2.16341266,176.42,176.4,3.32]
[1752889109142,2.16341266,176.42,176.4,8.9848]
[1752889109334,3.1,176.43,176.41,3.32]
[1752889110244,3.1,176.42,176.4,5.6648]
[1752889110746,3.1,176.42,176.41,3.32]
[1752889110942,3.1,176.43,176.41,3.32]
[1752889111749,2.16341266,176.44,176.41,3.32]
[1752889112848,2.16341266,176.44,176.43,3.32]
[1752889113146,5.26341266,176.44,176.43,3.32]
[1752889116846,3.1,176.43,176.41,8.9845]
[1752889117154,3.1,176.42,176.41,5.6645]
[1752889117551,2.16341266,176.44,176.41,5.6645]
[1752889117749,3.1,176.43,176.42,3.32]
[1752889120864,8.7639,176.43,176.39,5.6652]
[1752889121071,5.26341266,176.42,176.38,3.32]
[1752889121363,3.1,176.41,176.38,3.32]
[1752889121563,2.16341266,176.42,176.38,3.32]
[1752889121863,3.1,176.39,176.37,3.32]
[1752889123062,5.26341266,176.43,176.37,3.32]
[1752889123763,5.26341266,176.43,176.4,3.32]
[1752889124765,5.26341266,176.43,176.4,8.9848]
[1752889124968,5.26341266,176.43,176.4,5.6648]
[1752889125161,5.26341266,176.43,176.41,3.32]
[1752889126067,5.26341266,176.44,176.41,3.32]
[1752889126263,105.84341266,176.45,176.41,3.32]
[1752889126469,108.94341266,176.45,176.41,3.32]
[1752889127170,3.1,176.44,176.41,3.32]
[1752889127372,3.1,176.44,176.42,5.6642]
[1752889127669,3.1,176.44,176.43,3.32]
[1752889127870,105.84341266,176.45,176.43,3.32]
[1752889128176,106.78,176.45,176.43,3.32]
[1752889128368,5.26341266,176.46,176.44,3.32]
[1752889128564,2.16341266,176.46,176.44,3.32]
[1752889128761,5.26341266,176.48,176.44,3.32]
[1752889128961,3.1,176.47,176.44,5.6635]
[1752889129173,3.1,176.47,176.45,3.32]
[1752889129970,2.16341266,176.48,176.45,3.32]
[1752889130174,5.26341266,176.48,176.45,3.32]
[1752889130677,5.26341266,176.48,176.41,2.16341266]
[1752889130678,2.16341266,176.48,176.47,3.32]
[1752889131170,103.68,176.49,176.47,3.32]
[1752889131569,103.68,176.49,176.47,8.9826]
[1752889131770,103.68,176.49,176.47,5.6626]
[1752889131964,103.68,176.49,176.48,3.32]
[1752889132169,12.14431878,176.5,176.48,3.32]
[1752889133472,9.04431878,176.5,176.48,3.32]
[1752889133672,3.1,176.49,176.48,3.32]
[1752889134380,9.04431878,176.5,176.48,3.32]
[1752889134978,12.32431878,176.5,176.48,3.32]
[1752889135178,3.28,176.49,176.46,5.6629]
[1752889135679,3.28,176.49,176.47,3.19]
[1752889137382,3.28,176.49,176.47,8.8526]
[1752889137580,3.28,176.49,176.48,3.19]
[1752889137779,9.04431878,176.5,176.48,3.19]
[1752889138084,12.32431878,176.5,176.48,3.19]
[1752889140984,9.04431878,176.5,176.49,5.662]
[1752889141183,9.04431878,176.5,176.49,8.852]
[1752889141184,6.88090612,176.5,176.49,8.852]
[1752889142087,2.16341266,176.57,176.52,3.19]
[1752889142582,2.16341266,176.57,176.55,3.19]
[1752889143285,3.28,176.56,176.55,3.19]
[1752889143787,7.82281266,176.57,176.55,3.19]
[1752889143788,5.44341266,176.57,176.55,3.19]
[1752889145484,11.10291266,176.57,176.55,3.19]
[1752889145689,5.44341266,176.57,176.55,3.19]
[1752889146588,3.28,176.55,176.48,2.16341266]
[1752889146786,3.28,176.54,176.48,2.16341266]
[1752889147186,3.28,176.53,176.49,3.19]
[1752889147892,3.28,176.53,176.5,5.6616]
[1752889148190,3.28,176.53,176.51,3.19]
[1752889151194,5.6605,176.54,176.51,3.19]
[1752889151394,8.9405,176.54,176.51,3.19]
[1752889151696,11.10361266,176.55,176.52,3.19]
[1752889153790,5.6604,176.54,176.52,3.19]
[1752889153993,8.9404,176.54,176.52,3.19]
[1752889155090,5.6601,176.55,176.52,3.19]
[1752889155596,11.10331266,176.56,176.52,3.19]
[1752889155995,7.82331266,176.56,176.52,3.19]
[1752889156196,3.28,176.55,176.52,3.19]
[1752889156597,7.82331266,176.56,176.52,3.19]
[1752889156792,11.10331266,176.56,176.52,3.19]
[1752889157792,8.9401,176.55,176.52,3.19]
[1752889158192,5.6601,176.55,176.52,3.19]
[1752889158394,7.82331266,176.56,176.52,3.19]
[1752889158695,3.28,176.55,176.52,3.19]
[1752889159598,11.10331266,176.56,176.53,3.19]
[1752889159901,7.82331266,176.56,176.53,3.19]
[1752889160088,3.28,176.55,176.53,3.19]
[1752889163900,3.28,176.54,176.53,3.19]
[1752889165603,5.6598,176.56,176.53,3.19]
[1752889165894,8.7098,176.56,176.53,3.19]
[1752889166502,3.05,176.55,176.53,3.19]
[1752889173803,5.6598,176.56,176.53,3.19]
[1752889174006,8.7098,176.56,176.53,3.19]
[1752889174401,5.6595,176.57,176.53,3.19]
[1752889174703,3.05,176.57,176.53,3.19]
[1752889175004,3.05,176.57,176.53,8.8506]
[1752889175207,3.05,176.57,176.54,3.26]
[1752889175706,3.05,176.56,176.54,3.26]
[1752889176905,3.05,176.57,176.54,3.26]
[1752889177205,8.7095,176.57,176.54,3.26]
[1752889181407,5.6598,176.56,176.55,3.26]
[1752889181708,2.16341266,176.59,176.55,3.26]
[1752889181910,8.7094,176.58,176.55,3.26]
[1752889182111,3.05,176.57,176.55,3.26]
[1752889182605,3.05,176.56,176.55,3.26]
[1752889189121,8.7098,176.56,176.55,3.26]
[1752889201927,3.05,176.56,176.55,3.26]
[1752889202734,8.7098,176.56,176.55,3.26]
[1752889205336,5.6598,176.56,176.55,3.26]
[1752889205736,8.9998,176.56,176.55,3.26]
[1752889206632,3.34,176.56,176.55,3.26]
[1752889207236,8.9997,176.56,176.55,3.26]
[1752889208339,3.34,176.61,176.55,4.64278466]
[1752889208639,110.77823774,176.64,176.58,1.38278466]
[1752889208841,8.9987,176.6,176.59,3.09]
[1752889209137,5.6587,176.6,176.59,3.09]
[1752889209330,8.9987,176.6,176.59,3.09]
[1752889209930,3.34,176.61,176.6,3.09]
[1752889210833,8.9981,176.61,176.6,3.09]
[1752889211637,5.6579,176.62,176.6,4.47278466]
[1752889211943,3.34,176.62,176.61,3.09]
[1752889215246,8.9978,176.62,176.61,3.09]
[1752889215638,3.34,176.62,176.61,3.09]
[1752889220849,3.34,176.61,176.55,3.09]
[1752889221054,1.38278466,176.58,176.55,3.09]
[1752889221250,3.34,176.57,176.55,3.09]
[1752889221451,8.9995,176.57,176.55,3.09]
[1752889221650,3.34,176.56,176.55,3.09]
[1752889223253,4.72278466,176.57,176.55,3.09]
[1752889223456,1.38278466,176.57,176.55,3.09]
[1752889223655,3.34,176.56,176.55,3.09]
[1752889225551,8.9997,176.56,176.55,3.09]
[1752889226154,8.9993,176.58,176.55,3.09]
[1752889226354,3.34,176.57,176.55,3.09]
[1752889227051,1.38278466,176.6,176.56,1.38278466]
[1752889227357,3.34,176.63,176.6,3.33]
[1752889227555,3.34,176.63,176.6,4.71278466]
[1752889227757,3.34,176.63,176.61,3.33]
[1752889229158,8.9976,176.63,176.61,3.33]
[1752889229559,3.34,176.63,176.61,3.33]
[1752889229857,3.34,176.65,176.61,3.33]
[1752889230158,3.34,176.64,176.61,3.33]
[1752889230661,3.34,176.64,176.62,3.33]
[1752889231159,8.9975,176.64,176.62,3.33]
[1752889231363,3.34,176.63,176.59,2.15895166]
[1752889231661,3.34,176.63,176.6,5.6583]
[1752889231962,3.34,176.63,176.61,3.33]
[1752889232266,3.34,176.63,176.62,3.33]
[1752889233262,3.34,176.65,176.62,8.9878]
[1752889233460,3.34,176.65,176.63,3.33]
[1752889234256,8.9969,176.65,176.63,3.33]
[1752889236063,3.34,176.69,176.63,5.48895166]
[1752889236263,3.34,176.69,176.66,3.33]
[1752889236463,3.34,176.71,176.66,3.33]
[1752889236762,105.55895166,176.72,176.66,3.33]
[1752889236763,8.9961,176.68,176.66,3.33]
[1752889236965,3.34,176.67,176.66,3.33]
[1752889239063,8.9965,176.67,176.63,2.15895166]
[1752889239359,3.34,176.66,176.62,3.33]
[1752889240166,3.34,176.65,176.62,3.33]
[1752889240967,3.34,176.64,176.62,3.33]
[1752889243068,3.34,176.66,176.63,3.33]
[1752889243568,5.656,176.68,176.64,3.33]
[1752889243770,3.34,176.68,176.64,3.33]
[1752889244173,3.34,176.68,176.64,8.9869]
[1752889244367,5.49895166,176.68,176.65,3.33]
[1752889244571,2.15895166,176.68,176.65,3.33]
[1752889244766,3.34,176.67,176.65,3.33]
[1752889245064,8.9965,176.66,176.65,3.33]
[1752889246272,11.15545166,176.66,176.65,3.33]
[1752889246672,3.34,176.64,176.59,3.33]
[1752889247166,2.15895166,176.66,176.58,2.15895166]
[1752889247363,3.34,176.62,176.6,3.33]
[1752889247761,3.34,176.64,176.6,3.33]
[1752889248565,8.9972,176.64,176.6,3.33]
[1752889249671,3.34,176.64,176.58,2.15895166]
[1752889249871,3.34,176.64,176.61,3.33]
[1752889250569,8.9969,176.65,176.62,3.33]
[1752889252573,5.6572,176.64,176.62,3.33]
[1752889252773,8.9972,176.64,176.62,3.33]
[1752889255277,3.34,176.64,176.62,3.33]
[1752889255674,8.717,176.65,176.62,3.33]
[1752889257179,5.657,176.65,176.62,3.33]
[1752889257473,0.04259507,176.65,176.59,2.15895166]
[1752889257675,0.04259507,176.65,176.63,3.31]
[1752889258175,0.04259507,176.65,176.64,5.6572]
[1752889258376,0.04259507,176.65,176.64,8.9672]
[1752889260582,0.04259507,176.65,176.64,3.31]
[1752889261275,0.04259507,176.65,176.64,8.9672]
[1752889261579,3.06,176.69,176.64,3.31]
[1752889261779,2.15895166,176.7,176.64,3.31]
[1752889262075,5.6561,176.68,176.64,8.967]
[1752889262288,3.06,176.69,176.65,3.31]